Cogmind - Beta 10.2 @@@ ROGUE MODE // 2021.06.20 @ 15:35:35 Player: aperiodic Result: Self-destructed Performance ------------- Evolutions (7) 3500 Regions Visited (23) 4600 Robots Destroyed (473) 2365 Value Destroyed (17541) 17541 Prototype IDs (106) 2120 Alien Tech Used (1) 200 Bonus (-931) -931 TOTAL SCORE: 29395 Bonus ------- High Alert Combat Kills 2345 Follower Combat Kills 1550 Network Hubs Disabled 400 Aligned with FarCom 300 Met Zhirov 300 Built Enhanced Grunts 300 Friendly Fire -6126 Cogmind --------- Core Integrity 1032/1300 Matter 300/300 Energy 1996/2050 System Corruption 14% Temperature Cool (128) Movement Hovering (43) Location -3/Research Parts ------- > --- POWER (2) -------- Light Antimatter Reactor Light Particle Reactor > --- PROPULSION (6) --- Improved Antigrav System Improved Antigrav System Improved Antigrav System Improved Antigrav System Improved Antigrav System Combat Antigrav System > --- UTILITY (11) ----- High-capacity Storage Unit High-capacity Storage Unit Advanced Energy Well Experimental Energy Well Advanced Signal Interpreter Experimental Signal Interpreter Experimental Targeting Computer Improved Hacking Suite Advanced Hacking Suite Advanced Hacking Suite Advanced Dynamic Insulation System > --- WEAPON (2) ------- Power Sword > --- INVENTORY (20) --- Micro Fission Core Light Particle Reactor Medium Storage Unit Advanced Energy Well (800) Improved Matter Compressor (300) Makeshift Terrain Scan Processor Quantum Capacitor Damper Plating EM Disruption Field Long-range Tractor Beam PSU Rigger Transdimensional Reconstructor Coil Gun Gamma Bomb Array Gamma Bomb Array Micro-nuke Launcher Micro-nuke Launcher Peak State ------------ > --- POWER ------------ Light Antimatter Reactor Light Particle Reactor > --- PROPULSION ------- Improved Antigrav System Improved Antigrav System Improved Antigrav System Improved Antigrav System Improved Antigrav System Combat Antigrav System > --- UTILITY ---------- High-capacity Storage Unit High-capacity Storage Unit Advanced Energy Well Experimental Energy Well Advanced Signal Interpreter Experimental Signal Interpreter Experimental Targeting Computer Improved Hacking Suite Advanced Hacking Suite Advanced Hacking Suite Advanced Dynamic Insulation System > --- WEAPON ----------- Gamma Rifle Power Sword > --- INVENTORY -------- Light Particle Reactor Improved Antigrav System Medium Storage Unit Advanced Energy Well Improved Matter Compressor Makeshift Terrain Scan Processor Quantum Capacitor Damper Plating EM Disruption Field Long-range Tractor Beam PSU Rigger Transdimensional Reconstructor Coil Gun Gamma Bomb Array Gamma Bomb Array Micro-nuke Launcher Micro-nuke Launcher [Rating: 144] Favorites ----------- Power F-cell Engine Engine F-cell Engine Power Core Cooled Fission Core Reactor Compact Particle Reactor Propulsion Combat Antigrav System Treads Advanced Treads Leg Makeshift Leg Wheel Compact Wheel Hover Unit Combat Antigrav System Flight Unit Xenon Bombardment Thruster Utility High-capacity Storage Unit Device Experimental Sensor Array Storage High-capacity Storage Unit Processor Experimental Targeting Computer Hackware Improved Hacking Suite Protection Medium Armor Plating Weapon Improved KE Penetrator Energy Gun Advanced Variable Charge Gun Energy Cannon Light EM Pulse Cannon Ballistic Gun Improved KE Penetrator Ballistic Cannon Gauss Cannon Launcher Rocket Launcher Special Weapon Mining Laser Slashing Weapon Power Sword Build | -11 -10 -10 -9 -9 -9 -8 -8 -8 -7 -6 -6 -6 -6 -6 -5 -5 -5 -4 -4 -4 -4 -3 -3 ------- Run | Scr Mat Min Mat Min Exi Min Mat Sto Fac Fac Ext Cet Arc Hub Fac Was Fac Fac Upp Upp Zhi Pro Res Slots Evolved 14 | . . . 2 . . . 2 . 2 2 . . . . 2 . . 2 . . . . 2 Power 1 | . . . . . . . 1 . . . . . . . . . . . . . . . . Propulsion 4 | . . . . . . . 1 . . 1 . . . . . . . . . . . . 2 Utility 9 | . . . 2 . . . . . 2 1 . . . . 2 . . 2 . . . . . Weapon . | . . . . . . . . . . . . . . . . . . . . . . . . Parts Attached 627 | 7 21 . 20 4 36 7 53 27 23 20 26 29 5 22 79 15 66 87 3 5 3 25 44 Power 54 | 1 . . 4 . 1 . 6 . 3 3 1 5 . 1 5 . 3 6 . 2 1 4 8 Engine 20 | 1 . . 2 . 1 . 4 . . 3 1 2 . 1 3 . . . . . . . 2 Core 15 | . . . 2 . . . 2 . 3 . . 1 . . . . 3 2 . 1 . 1 . Reactor 19 | . . . . . . . . . . . . 2 . . 2 . . 4 . 1 1 3 6 Propulsion 89 | 3 8 . 4 1 8 2 8 3 4 4 . . . 1 11 1 1 6 . . . 3 21 Treads 21 | . 4 . 4 1 4 2 3 2 1 . . . . . . . . . . . . . . Leg 13 | . . . . . 4 . 5 . . . . . . . . . . . . . . 2 2 Wheel 11 | 3 4 . . . . . . . . . . . . . . . . . . . . . 4 Hover 43 | . . . . . . . . 1 3 4 . . . 1 11 1 1 6 . . . . 15 Flight 1 | . . . . . . . . . . . . . . . . . . . . . . 1 . Utility 241 | 1 5 . 5 1 14 . 10 . 6 8 14 12 3 9 42 10 45 42 3 1 1 2 7 Device 144 | . . . . . 5 . 2 . 1 4 11 4 2 5 30 8 35 31 2 . 1 2 1 Storage 31 | 1 5 . 3 . 5 . 4 . 1 1 . 1 . 1 1 . . 3 1 1 . . 3 Processor 3 | . . . . . . . . . 2 . . . . . . . . . . . . . 1 Hackware 17 | . . . . . . . 3 . 1 3 . 2 . . 2 . 2 3 . . . . 1 Protection 46 | . . . 2 1 4 . 1 . 1 . 3 5 1 3 9 2 8 5 . . . . 1 Artifact . | . . . . . . . . . . . . . . . . . . . . . . . . Weapon 243 | 2 8 . 7 2 13 5 29 24 10 5 11 12 2 11 21 4 17 33 . 2 1 16 8 Energy Gun 32 | . . . . . . . 1 7 1 . . 1 . . 6 . 4 5 . 1 . 3 3 Energy Cannon 117 | . . . 5 1 5 2 18 8 2 4 9 4 1 6 3 . 6 26 . 1 1 12 3 Ballistic Gun 67 | 2 5 . . . 5 3 6 2 5 1 2 5 1 5 12 3 7 2 . . . . 1 Ballistic Cannon 2 | . . . . . . . 2 . . . . . . . . . . . . . . . . Launcher 16 | . 1 . . 1 3 . 2 6 2 . . . . . . 1 . . . . . . . Special Weapon 6 | . 2 . 2 . . . . . . . . 2 . . . . . . . . . . . Impact Weapon . | . . . . . . . . . . . . . . . . . . . . . . . . Slashing Weapon 3 | . . . . . . . . 1 . . . . . . . . . . . . . 1 1 Piercing Weapon . | . . . . . . . . . . . . . . . . . . . . . . . . Special Melee Weapon . | . . . . . . . . . . . . . . . . . . . . . . . . Unidentified Prototypes 35 | . . . 1 . 4 . 2 5 1 1 . 7 . 1 2 2 1 2 . . 2 . 4 Parts Lost 78 | . . . 1 1 13 1 4 2 4 . 2 1 . 2 3 . 3 7 . 4 . 11 19 Power 18 | . . . . . 1 . 3 . 1 . 1 . . . . . 1 1 . 2 . 3 5 Propulsion 23 | . . . 1 . 3 1 . . 3 . . . . 1 2 . . . . . . 3 9 Utility 18 | . . . . 1 6 . . . . . . . . . 1 . 2 4 . 1 . 3 . Weapon 19 | . . . . . 3 . 1 2 . . 1 1 . 1 . . . 2 . 1 . 2 5 Highest Loss Streak 5 | . . . 1 1 5 1 2 1 4 . 2 1 . 2 2 . 1 5 . 4 . 3 4 Average Slot Usage (%) 95 | . 98 100 99 99 83 99 96 99 98 97 98 99 100 99 98 99 99 91 94 89 89 85 83 Engine 6 | . 14 14 6 11 9 11 12 18 11 3 12 10 6 5 4 5 2 . . . . . 2 Core 2 | . . . 4 . . . 2 . 3 9 . 1 . . . . 6 6 5 4 3 1 . Reactor 1 | . . . . . . . . . . . . . 6 6 4 5 2 3 5 4 6 6 4 Treads 5 | . 1 . 20 22 12 . 10 26 20 . . . . . . . . . . . . . . Leg 3 | . . . . . 8 21 16 . . . . . . . . . . . . . . 1 4 Wheel 1 | . 26 28 1 . . . . . . . . . . . . . . . . . . . 3 Hover 13 | . . . . . . . . . 1 24 26 26 26 25 22 23 23 20 21 21 21 15 13 Device 6 | . . . . . 4 11 1 . . 6 5 4 5 5 4 7 7 20 22 17 15 11 3 Storage 17 | . 26 28 33 33 19 33 26 27 21 6 13 13 13 13 11 11 11 10 13 18 21 21 17 Processor 6 | . . . . . . . . . 7 13 13 13 13 13 11 11 11 10 10 10 10 10 12 Hackware 10 | . . . . . . . 7 9 14 18 13 13 13 13 22 17 15 9 10 10 10 10 12 Protection 2 | . . . 10 10 8 . . . . . . 1 . . 1 2 3 1 . . . . . Energy Cannon 6 | . . . 21 22 10 4 14 7 . 7 10 3 2 1 . . 1 3 5 1 . 3 1 Ballistic Gun 6 | . 26 28 . . 9 17 2 1 9 5 . 6 10 10 9 9 7 1 . . . . 1 Naked Turns . | . . . . . . . . . . . . . . . . . . . . . . . . Heaviest Build 160 | 11 35 35 87 87 119 114 126 126 130 104 104 105 110 112 112 112 136 160 116 115 113 113 128 Greatest Support 130 | 32 26 26 40 40 50 50 70 66 66 104 104 104 104 104 120 120 120 120 120 120 120 120 130 Greatest Overweight (x) 33 | . 1 1 2 2 10 5 5 1 5 . . 1 33 1 1 . 1 1 . . . 29 4 Average Overweight (x) . | . . 1 1 1 1 2 1 1 . . . . 7 . . . . . . . . . . Largest Inventory Capacity 28 | 6 14 14 24 24 28 28 28 28 28 20 20 20 20 20 20 20 20 20 20 20 20 20 28 Average Capacity 20 | 5 10 14 22 24 17 28 27 28 26 12 20 20 20 20 20 20 20 20 20 20 20 20 20 Most Carried 28 | 5 12 13 24 24 28 28 28 28 28 13 20 20 20 20 20 20 20 20 20 20 20 19 20 Average Carried 19 | 3 8 12 21 23 13 28 26 27 25 11 18 19 19 19 16 19 19 18 19 18 18 16 18 Final Capacity 28 | 6 14 14 24 24 28 28 28 28 12 20 20 20 20 20 20 20 20 20 20 20 20 20 20 Final Carried 28 | 4 12 13 24 23 28 28 27 28 11 13 20 20 20 18 19 20 20 20 20 18 19 17 20 Class Distribution -------------------- 33% | Hacker-Mutant 30% | Hauler-Mutant 12% | Machinist-Mutant 11% | Commander-Mutant 9% | Mutant Dominant Class ---------------- Mutant | -10/Materials Mutant | -10/Mines Hauler-Mutant | -9/Materials Hauler-Mutant | -9/Mines Mutant | -9/Exiles Hauler-Mutant | -8/Mines Hauler-Mutant | -8/Materials Hauler-Mutant | -8/Storage Hauler-Mutant | -7/Factory Hacker-Mutant | -6/Factory Hacker-Mutant | -6/Extension Commander-Mutant | -6/Cetus Commander-Mutant | -6/Archives Commander-Mutant | -6/Hub_04(d) Hacker-Mutant | -5/Factory Hacker-Mutant | -5/Waste Hacker-Mutant | -5/Factory Machinist-Mutant | -4/Factory Machinist-Mutant | -4/Upper Caves Machinist-Mutant | -4/Upper Caves Machinist-Mutant | -4/Zhirov Machinist-Mutant | -3/Proximity Caves Hacker-Mutant | -3/Research Resources | -11 -10 -10 -9 -9 -9 -8 -8 -8 -7 -6 -6 -6 -6 -6 -5 -5 -5 -4 -4 -4 -4 -3 -3 ----------- Run | Scr Mat Min Mat Min Exi Min Mat Sto Fac Fac Ext Cet Arc Hub Fac Was Fac Fac Upp Upp Zhi Pro Res Matter Collected 11671 | 304 227 71 432 50 1274 210 866 352 451 216 333 309 145 320 2000 475 1331 1338 23 57 . 334 553 Remotely . | . . . . . . . . . . . . . . . . . . . . . . . . Salvage Created 24375 | 171 357 . 1213 124 382 246 2116 2724 1471 380 1043 188 605 1292 2342 257 2413 3861 . . . 1026 2164 Parts 1143 | 12 37 . 66 9 47 14 103 133 54 26 48 18 25 39 101 2 128 145 . . . 42 94 Haulers Intercepted 32 | . 2 . 4 . . . 5 6 . 1 . . . 5 1 . 1 4 . . . . 3 Recyclers Shooed 13 | . . . 1 . . . 2 2 2 . . . . . 1 . . 5 . . . . . Parts Field Recycled . | . . . . . . . . . . . . . . . . . . . . . . . . Retrieved Matter . | . . . . . . . . . . . . . . . . . . . . . . . . Parts Self-Destructed 25 | . . . . . . . . . . . . . . . . . . . 5 2 . 18 . Prevented 22 | . . . . . . . . . . . . . . . . . . . . 1 . 21 . Kills | -11 -10 -10 -9 -9 -9 -8 -8 -8 -7 -6 -6 -6 -6 -6 -5 -5 -5 -4 -4 -4 -4 -3 -3 ------- Run | Scr Mat Min Mat Min Exi Min Mat Sto Fac Fac Ext Cet Arc Hub Fac Was Fac Fac Upp Upp Zhi Pro Res Combat Hostiles Destroyed 298 | . 7 . 19 5 3 6 37 38 23 3 10 1 2 8 30 1 30 40 . . . 16 19 Melee 12 | . . . . . . . . . . . . . . . . . . 1 . . . 3 8 Guns 96 | . 7 . . . 1 5 6 8 7 . . . . 3 21 1 20 13 . . . . 4 Cannons 73 | . . . 17 2 . 1 22 7 1 2 7 . . . . . 2 8 . . . 3 1 AOE 79 | . . . 2 3 2 . 8 18 14 . 1 1 1 2 4 . 5 8 . . . 8 2 Classes Destroyed 20 | 2 5 . 3 1 2 . 1 3 1 . . . . . 1 1 . . . . . . . Worker 26 | . . . 2 . . 1 . 4 2 . . . . 3 7 . 1 2 . . . . 4 Builder 18 | . 1 . . . . . . 3 . 3 1 . . 1 3 . 2 3 . . . . 1 Tunneler 11 | 5 . . 1 . . 1 . . 1 . . . . 1 . . . 2 . . . . . Hauler 32 | . 2 . 4 . . . 5 6 . 1 . . . 5 1 . 1 4 . . . . 3 Recycler 22 | 1 1 . 1 . . . 3 5 2 . 2 . . . 1 . 1 2 . . . . 3 Mechanic 4 | . . . . . . . . 2 . . . . . . . . 1 1 . . . . . Operator 13 | . 1 . . . . . 2 1 . . 1 . 5 . . . 1 2 . . . . . Watcher 32 | . 2 . 4 . . . 4 1 . 2 3 1 . 1 3 . 6 4 . . . . 1 Swarmer 52 | . 7 . 6 3 . 3 13 5 4 . 1 . . . . . 4 . . . . 6 . Saboteur 3 | . . . . . . . . . . . . . . . 1 . . 2 . . . . . Grunt 105 | . . . 8 1 . 3 13 19 13 2 1 1 . 6 12 . 3 13 . . . 5 5 Brawler 7 | . . . . . . . . 3 2 . . . . . . . . 2 . . . . . Duelist 9 | . . . . 1 . . 1 1 . . . . . . 1 . . 3 . . . 2 . Protector 3 | . . . . . . . . 2 . . . . . . . . . . . . . 1 . Sentry 50 | . . . 6 . . . 9 8 2 . 7 . 2 2 3 . 6 5 . . . . . Hunter 23 | . . . . . . . 1 . . . . . . . 4 . 5 3 . . . 2 8 Programmer 43 | . . . . . . . . . 2 1 1 . . . 9 . 12 12 . . . . 6 Compactor 1 | . . . . . . . . . . . . . . . . 1 . . . . . . . Zionite 8 | . . . . . 8 . . . . . . . . . . . . . . . . . . Assembled 2 | . . . . . 2 . . . . . . . . . . . . . . . . . . Savage 1 | . . . . . . . . . . . . . . 1 . . . . . . . . . Butcher 4 | . . . . . . . . . . . . . 3 1 . . . . . . . . . Guerrilla 1 | . . . . . . . . . . . . . 1 . . . . . . . . . . Best Kill Streak 11 | 3 3 . 5 2 3 4 4 10 11 3 3 1 3 7 5 1 5 11 . . . 5 7 Combat Bots Only 10 | . 3 . 3 2 2 3 4 8 10 2 2 1 1 4 5 1 4 6 . . . 5 4 Max Kills in Single Turn 6 | 1 2 . 2 2 1 2 3 6 4 1 1 1 4 3 2 1 3 4 . . . 4 2 Gunslinging 1 | . . . . . . . . . . . . . . . 1 . . . . . . . . Exploded 6 | . . . 2 2 1 . 3 6 4 . 1 1 1 1 2 . 3 2 . . . 4 1 Melee 1 | . . . . . . . . . . . . . . . . . . 1 . . . 1 1 Uniques/NPCs Destroyed 5 | . . . . . 4 . . . . . . 1 . . . . . . . . . . . 8R-AWN (-9/Exiles) EX-HEX (-9/Exiles) EX-DEC (-9/Exiles) EX-BIN (-9/Exiles) A7 (-6/Cetus) Combat | -11 -10 -10 -9 -9 -9 -8 -8 -8 -7 -6 -6 -6 -6 -6 -5 -5 -5 -4 -4 -4 -4 -3 -3 -------- Run | Scr Mat Min Mat Min Exi Min Mat Sto Fac Fac Ext Cet Arc Hub Fac Was Fac Fac Upp Upp Zhi Pro Res Damage Taken 18656 | . 227 17 403 129 1871 364 1155 772 700 169 799 186 188 302 1652 . 2233 2251 74 94 . 2617 2453 Core 2570 | . 35 7 34 23 235 89 155 76 62 49 58 10 25 18 228 . 224 306 . . . 668 268 Absorbed by Shields 1992 | . . . . . 216 . . . . . 43 130 . . 64 . 1215 324 . . . . . Core Remaining (%) 60 | 100 . 83 . . . 4 . 58 91 . . . . 81 . . 54 . . . . 15 . Volleys Fired 1316 | 17 39 . 55 7 106 21 114 81 43 75 64 47 9 42 133 22 130 207 2 12 . 45 45 Largest 2 | 2 2 . 2 2 2 2 2 2 2 2 2 2 2 2 2 2 2 2 1 1 . 1 2 Hottest 240 | 40 100 . 112 112 112 112 119 119 138 138 174 104 60 70 80 70 178 178 98 240 . 240 146 Shots Fired 2078 | 34 67 . 107 13 197 42 211 115 76 83 92 69 12 54 223 44 234 262 2 12 . 45 84 Gun 1146 | 34 56 . . . 185 31 63 33 62 4 8 6 5 25 219 44 208 105 . 2 . 8 48 Cannon 848 | . . . 105 12 2 11 141 65 2 79 84 39 7 29 4 . 26 157 2 10 . 37 36 Launcher 48 | . 1 . . 1 10 . 7 17 12 . . . . . . . . . . . . . . Special 36 | . 10 . 2 . . . . . . . . 24 . . . . . . . . . . . Kinetic 1005 | 34 56 . . . 185 31 80 7 48 4 8 6 5 25 182 44 182 76 . . . . 32 Thermal 511 | . 10 . 2 . . . 8 7 . 69 31 59 . 26 37 . 48 136 2 12 . 31 33 Explosive 8 | . 1 . . 1 6 . . . . . . . . . . . . . . . . . . Electromagnetic 554 | . . . 105 12 6 11 123 101 28 10 53 4 7 3 4 . 4 50 . . . 14 19 Robot Hit Streak 34 | 6 19 . 10 4 20 13 12 22 34 9 19 11 5 11 18 11 19 21 . 2 . 11 23 Robot Miss Streak 4 | 2 4 . 3 4 2 3 3 2 2 2 2 2 2 2 3 1 4 3 . 1 . 4 2 Penetration Max 1 | . . . . . . . . . . . . 1 . . 1 . 1 1 . . . . . Secondary Targets 9 | . . . . . . 2 1 . . . . . . . 3 . 1 2 . . . . . Max Gunslinging Chain 1 | . . . . . . 1 1 . . . . . . . 1 . 1 1 . . . . . Shots Hit Robots 1376 | 23 40 . 62 6 148 29 139 77 66 23 51 50 5 26 132 34 152 163 . 1 . 36 113 Core Hits 784 | 9 21 . 33 6 34 11 65 78 48 10 29 35 20 32 68 2 69 98 . . . 61 55 Critical Hits 101 | . . . . . 1 . 4 3 4 . . 5 1 4 21 9 29 12 . . . 1 7 Critical Kills 32 | . . . . . . . 1 3 . . . . 1 3 8 . 10 5 . . . . 1 Critical Parts Destroyed 58 | . . . . . . . 3 . 3 . . 4 . 1 13 2 19 6 . . . 1 6 Melee Attacks 77 | . . . . . . . . 1 . . . . . . . . . . . . . 5 71 Impact . | . . . . . . . . . . . . . . . . . . . . . . . . Slashing 77 | . . . . . . . . 1 . . . . . . . . . . . . . 5 71 Piercing . | . . . . . . . . . . . . . . . . . . . . . . . . Sneak Attacks 3 | . . . . . . . . . . . . . . . . . . . . . . . 3 Combat Hostiles . | . . . . . . . . . . . . . . . . . . . . . . . . Follow-up Attacks . | . . . . . . . . . . . . . . . . . . . . . . . . Damage Inflicted 54085 | 173 516 . 1880 240 2412 574 3696 4136 2757 818 1915 1742 1548 2349 5504 993 5601 9563 . 62 . 2617 4989 Guns 19470 | 173 432 . . . 2190 263 734 522 1146 53 123 121 88 393 4088 993 4093 2997 . 62 . 328 671 Cannons 14012 | . . . 1594 104 . 161 1999 1101 47 729 1538 929 8 384 33 . 503 3014 . . . 776 1092 Explosions 17816 | . 84 . 276 136 222 150 933 2446 1564 36 254 496 1452 1572 1383 . 1005 3552 . . . 1379 876 Melee 2484 | . . . . . . . . . . . . . . . . . . . . . . 134 2350 Ramming 107 | . . . 10 . . . 30 67 . . . . . . . . . . . . . . . Kinetic 16906 | 173 432 . . . 2190 263 979 66 789 53 123 121 88 393 4068 993 3609 2223 . . . . 343 Thermal 10939 | . 45 . 276 43 . 150 530 1031 341 501 509 1084 . 371 311 . 977 2474 . 62 . 1082 1152 Explosive 757 | . 39 . . 93 178 . . . 249 . . . . . 34 . 164 . . . . . . Electromagnetic 22892 | . . . 1594 104 44 161 2157 2972 1378 264 1283 537 1460 1585 1091 . 851 4866 . . . 1401 1144 Impact . | . . . . . . . . . . . . . . . . . . . . . . . . Slashing 2484 | . . . . . . . . . . . . . . . . . . . . . . 134 2350 Piercing . | . . . . . . . . . . . . . . . . . . . . . . . . Highest Corruption 19 | . 1 1 . . . . 1 2 . 1 3 3 19 9 9 3 7 19 2 . . 13 14 Average Corruption 5 | . 1 1 . . . . 1 1 . 1 2 2 11 4 4 2 3 8 1 . . 7 8 Corruption Purged 114 | . . . . . . . . . . 1 3 5 19 9 18 3 20 33 2 . . 1 . Effects 334 | . 2 1 . . . . . 7 . 1 6 1 37 19 80 8 25 83 1 . . 30 33 Message Errors 78 | . 2 1 . . . . . . . . 1 . 11 3 20 3 5 24 1 . . 5 2 Matter Fused 80 | . . . . . . . . . . . 3 . 10 5 20 2 7 13 . . . 12 8 Heat Flow Errors 21 | . . . . . . . . . . . . . 2 3 4 . 2 7 . . . 2 1 Energy Discharges 33 | . . . . . . . . 2 . . 2 1 5 3 6 . 3 9 . . . 2 . Parts Rejected 1 | . . . . . . . . . . . . . . . . . . . . . . . 1 Data Loss (minor) 49 | . . . . . . . . 5 . 1 . . 5 4 15 2 4 6 . . . 5 2 Data Loss (major) 13 | . . . . . . . . . . . . . 2 1 2 . . 3 . . . . 5 Misfires 6 | . . . . . . . . . . . . . 1 . . . 2 2 . . . . 1 Misdirections 8 | . . . . . . . . . . . . . . . . . . 3 . . . 1 4 Targeting Errors 41 | . . . . . . . . . . . . . 1 . 11 1 2 14 . . . 3 9 Weapon Failures 4 | . . . . . . . . . . . . . . . 2 . . 2 . . . . . Overload Shots 8 | . . . . . . . . . . . 4 . . . . . . . . 2 . 2 . Overflow Damage 1352 | . 5 . 89 2 . 21 342 90 17 1 30 5 108 81 111 . 89 151 . . . 12 198 Projectiles 465 | . . . 89 2 . . 48 23 . 1 21 5 . 36 . . 84 90 . . . . 66 Explosions 751 | . 5 . . . . 21 294 63 17 . 9 . 108 45 111 . 5 61 . . . 12 . Melee 136 | . . . . . . . . 4 . . . . . . . . . . . . . . 132 Knockbacks 4 | . . . . . . . 4 . . . . . . . . . . . . . . . . Impact 1 | . . . . . . . 1 . . . . . . . . . . . . . . . . Kinetic 2 | . . . . . . . 2 . . . . . . . . . . . . . . . . Secondary 1 | . . . . . . . 1 . . . . . . . . . . . . . . . . Self-Inflicted Damage 793 | . . . 142 5 48 50 71 31 . . . . 66 198 114 . 56 . . . . 12 . Shots 17 | . . . 2 1 3 1 1 2 . . . . 1 2 2 . 1 . . . . 1 . Rammed 6 | . . . 1 . . . . 5 . . . . . . . . . . . . . . . Targets Rammed 7 | . . . 1 . . . 1 5 . . . . . . . . . . . . . . . Kicked 1 | . . . . . . . 1 . . . . . . . . . . . . . . . . Crushed . | . . . . . . . . . . . . . . . . . . . . . . . . Highest Temperature 504 | . 60 . 504 102 27 306 228 309 75 365 274 72 176 222 396 254 451 426 46 296 . 327 182 Average Temperature 73 | . 23 . 72 49 4 91 62 81 24 65 82 25 44 38 102 72 73 86 24 70 . 94 52 Received Heat Transfer 2265 | . . . 57 12 . 90 486 243 189 45 112 22 9 33 246 . 210 199 . 9 . 195 108 Effects 16 | . . . . . . . . . . 2 . . . . 5 2 . 6 . . . 1 . Shutdowns 1 | . . . . . . . . . . . . . . . 1 . . . . . . . . Energy Bleed 5 | . . . . . . . . . . 2 . . . . 2 . . . . . . 1 . Interference 9 | . . . . . . . . . . . . . . . 1 2 . 6 . . . . . Damage (minor) 1 | . . . . . . . . . . . . . . . 1 . . . . . . . . Siege Activations . | . . . . . . . . . . . . . . . . . . . . . . . . Robots Corrupted 46 | . . . . . . . 1 6 1 2 2 . 3 3 4 . 2 15 . . . 2 5 Combat Hostiles 36 | . . . . . . . 1 5 1 1 2 . 1 3 4 . 2 10 . . . 2 4 Parts Fried 147 | . . . 9 . . 1 16 14 7 . 10 . 9 10 14 . 5 36 . . . 10 6 Impact Corruptions 1 | . . . . . . . . 1 . . . . . . . . . . . . . . . Robots Melted 1 | . . . . . . . . . . . . . . . . . 1 . . . . . . Combat Hostiles 1 | . . . . . . . . . . . . . . . . . 1 . . . . . . Parts Melted 14 | . . . . . . . . 1 . . . . . 2 . . 2 4 . . . 1 4 Heat Transferred 11776 | . 50 . 150 . . 200 350 1350 350 700 600 1115 . 550 237 . 1205 2990 . 50 . 854 1025 Parts Sabotaged 5 | . . . . . . . . . . . . . . . . . . 5 . . . . . Parts Stolen 1 | . . . . . . . . . . . . . . . . . . . . 1 . . . Parts Stripped . | . . . . . . . . . . . . . . . . . . . . . . . . Power Chain Reactions 34 | . . . 2 1 . 1 3 15 4 1 2 . . 2 1 . . . . . . 1 1 Missiles Intercepted . | . . . . . . . . . . . . . . . . . . . . . . . . Latent Energy Used 6097 | . . . . . . . . . . . 92 178 1193 600 785 . 569 1786 . . . 547 347 LE Corruption 107 | . . . . . . . . . . . 3 5 19 9 12 . 10 28 . . . 14 7 Alert | -11 -10 -10 -9 -9 -9 -8 -8 -8 -7 -6 -6 -6 -6 -6 -5 -5 -5 -4 -4 -4 -4 -3 -3 ------- Run | Scr Mat Min Mat Min Exi Min Mat Sto Fac Fac Ext Cet Arc Hub Fac Was Fac Fac Upp Upp Zhi Pro Res Peak Influence 1439 | 30 212 112 473 292 . 90 817 1261 1222 592 499 795 605 436 851 199 927 1439 . . . . 398 Initial 573 | . 19 82 43 162 . . 33 165 573 535 . 249 258 56 213 199 . 453 . . . . 86 Average 320 | 11 77 85 241 110 . 17 297 529 990 332 161 575 396 103 288 164 252 620 . . . . 230 Maximum Alert Level 4 | . 1 . 2 1 . . 3 4 4 2 2 3 2 2 3 . 3 4 . . . . 1 Low Security (%) 43 | 100 92 100 40 89 . 100 45 7 . 25 67 . 9 86 46 100 50 . . . . . 35 Level 1 23 | . 7 . 42 10 . . 23 46 . 31 15 29 32 13 24 . 37 5 . . . . 64 Level 2 23 | . . . 17 . . . 27 12 19 43 16 30 58 . 25 . 6 66 . . . . . Level 3 6 | . . . . . . . 3 19 32 . . 40 . . 3 . 6 20 . . . . . Level 4 2 | . . . . . . . . 13 48 . . . . . . . . 5 . . . . . Level 5 . | . . . . . . . . . . . . . . . . . . . . . . . . High Security . | . . . . . . . . . . . . . . . . . . . . . . . . Max Security . | . . . . . . . . . . . . . . . . . . . . . . . . Squads Dispatched 81 | . 1 . 3 1 . . 7 6 5 3 1 . . 6 8 . 13 19 . . . 1 7 Investigation 10 | . . . 1 1 . . 2 . 1 . . . . 1 . . 1 2 . . . . 1 Extermination 24 | . . . . . . . . . 2 2 . . . 2 5 . 6 5 . . . . 2 Reinforcement 22 | . 1 . 2 . . . 2 2 . 1 1 . . 2 2 . 5 3 . . . . 1 Assault 16 | . . . . . . . . 3 2 . . . . . 1 . 1 8 . . . 1 . Garrison 9 | . . . . . . . 3 1 . . . . . 1 . . . 1 . . . . 3 Intercept . | . . . . . . . . . . . . . . . . . . . . . . . . Construction Impeded 8 | . . . . . . . 1 1 . . . . . . 2 . 2 1 . . . . 1 Haulers Reinforced 6 | . . . . . . . . . . 1 . . . 2 . . 2 1 . . . . . Stealth | -11 -10 -10 -9 -9 -9 -8 -8 -8 -7 -6 -6 -6 -6 -6 -5 -5 -5 -4 -4 -4 -4 -3 -3 --------- Run | Scr Mat Min Mat Min Exi Min Mat Sto Fac Fac Ext Cet Arc Hub Fac Was Fac Fac Upp Upp Zhi Pro Res Distress Signals 21 | . 3 . 1 . . . 2 . . . 3 1 1 2 1 . 4 2 . . . . 1 Communications Jammed . | . . . . . . . . . . . . . . . . . . . . . . . . Distress Signals . | . . . . . . . . . . . . . . . . . . . . . . . . Times Spotted 552 | . 21 3 36 8 37 7 48 48 30 10 28 13 6 18 36 2 50 81 1 3 . 33 33 Peak Tracking Total 9 | . 6 3 4 4 9 3 5 9 4 3 4 7 1 4 6 1 5 7 1 1 . 9 5 Tactical Retreats 78 | . 3 . 2 1 14 1 5 6 . 1 11 . 1 2 3 1 7 9 1 1 . 8 1 Traps | -11 -10 -10 -9 -9 -9 -8 -8 -8 -7 -6 -6 -6 -6 -6 -5 -5 -5 -4 -4 -4 -4 -3 -3 ------- Run | Scr Mat Min Mat Min Exi Min Mat Sto Fac Fac Ext Cet Arc Hub Fac Was Fac Fac Upp Upp Zhi Pro Res Traps Triggered 16 | . 2 . 1 . . . . 4 . 1 3 . . 1 2 . . 2 . . . . . Indirectly 3 | . . . . . . . . 2 . . . . . . . . . 1 . . . . . Trap Hack Attempts . | . . . . . . . . . . . . . . . . . . . . . . . . Triggered . | . . . . . . . . . . . . . . . . . . . . . . . . Disarmed . | . . . . . . . . . . . . . . . . . . . . . . . . Reprogrammed . | . . . . . . . . . . . . . . . . . . . . . . . . Reused . | . . . . . . . . . . . . . . . . . . . . . . . . Traps Extracted . | . . . . . . . . . . . . . . . . . . . . . . . . Installed . | . . . . . . . . . . . . . . . . . . . . . . . . Triggered . | . . . . . . . . . . . . . . . . . . . . . . . . Power Sources Rigged 7 | . . . . . . . . . . . 6 . . . 1 . . . . . . . . Exploded 9 | . . . . . 3 . . . . . 5 . . . 1 . . . . . . . . Machines | -11 -10 -10 -9 -9 -9 -8 -8 -8 -7 -6 -6 -6 -6 -6 -5 -5 -5 -4 -4 -4 -4 -3 -3 ---------- Run | Scr Mat Min Mat Min Exi Min Mat Sto Fac Fac Ext Cet Arc Hub Fac Was Fac Fac Upp Upp Zhi Pro Res Machines Disabled 98 | . 4 . 3 1 8 1 5 7 14 2 4 3 5 8 11 . 15 5 . . . 2 . Max in Single Turn 5 | . 4 . 1 . 1 1 2 2 3 1 1 1 2 5 2 . 3 3 . . . 2 . Garrison Access 9 | . . . . . . . 1 1 1 1 . . . 1 1 . 2 1 . . . . . Network Hub 2 | . . . . . . . . . . . . . . 2 . . . . . . . . . Machines Sabotaged . | . . . . . . . . . . . . . . . . . . . . . . . . Garrisons Compromised . | . . . . . . . . . . . . . . . . . . . . . . . . Overloaded Fab Kills . | . . . . . . . . . . . . . . . . . . . . . . . . Fab Network Shutdowns 3 | . . . . . . . . . . . . . . . 1 . 1 1 . . . . . Hacking | -11 -10 -10 -9 -9 -9 -8 -8 -8 -7 -6 -6 -6 -6 -6 -5 -5 -5 -4 -4 -4 -4 -3 -3 --------- Run | Scr Mat Min Mat Min Exi Min Mat Sto Fac Fac Ext Cet Arc Hub Fac Was Fac Fac Upp Upp Zhi Pro Res Machines Accessed 123 | . 6 . 8 1 2 . 16 8 4 12 6 1 . 6 20 . 20 10 . . 1 . 2 Terminals 82 | . 6 . 7 . . . 10 6 1 7 6 1 . 5 12 . 12 7 . . . . 2 Fabricators 7 | . . . . . . . . . 1 1 . . . . 3 . 1 1 . . . . . Repair Stations 12 | . . . 1 . . . 2 1 . 2 . . . . 3 . 2 1 . . . . . Recycling Units 5 | . . . . . . . 1 1 1 1 . . . . 1 . . . . . . . . Scanalyzers 5 | . . . . . . . 2 . . . . . . . . . 3 . . . . . . Garrison Access 8 | . . . . . . . 1 . 1 1 . . . 1 1 . 2 1 . . . . . Total Hacks 553 | . 18 . 25 1 2 . 85 17 7 41 13 1 . 21 123 . 128 66 . . 1 . 4 Successful 376 | . 11 . 16 1 2 . 59 12 4 27 11 1 . 9 98 . 80 42 . . 1 . 2 Failed 174 | . 7 . 8 . . . 25 5 3 14 2 . . 12 24 . 48 24 . . . . 2 Catastrophic 23 | . 1 . . . . . . 1 . 2 . . . 4 3 . 9 3 . . . . . Database Lockouts 3 | . . . 1 . . . 1 . . . . . . . 1 . . . . . . . . Manual 242 | . 14 . 17 . 1 . 30 4 1 18 3 1 . 10 49 . 74 17 . . . . 3 Terminals 357 | . 18 . 20 . . . 42 9 2 28 13 1 . 17 70 . 98 35 . . . . 4 Fabricators 29 | . . . . . . . . . 3 4 . . . . 14 . 3 5 . . . . . Repair Stations 107 | . . . 5 . . . 16 6 . 7 . . . . 37 . 14 22 . . . . . Recycling Units 7 | . . . . . . . 2 2 1 1 . . . . 1 . . . . . . . . Scanalyzers 33 | . . . . . . . 22 . . . . . . . . . 11 . . . . . . Garrison Access 16 | . . . . . . . 3 . 1 1 . . . 4 1 . 2 4 . . . . . Terminal Hacks 146 | . 7 . 5 1 2 . 14 6 1 9 8 1 . 6 33 . 38 13 . . 1 . 1 Record 4 | . . . . . 1 . 1 . . . . 1 . . . . . . . . 1 . . Part Schematic 15 | . . . . . . . . . . . . . . . 1 . 13 1 . . . . . Robot Analysis 16 | . 2 . 2 . . . 3 . . . . . . . 5 . 3 1 . . . . . Prototype ID Bank 20 | . 3 . 1 . . . 1 1 1 . 2 . . . 3 . 5 2 . . . . 1 Open Door 7 | . . . . 1 . . . 4 . . 2 . . . . . . . . . . . . Level Access Points 1 | . . . . . . . . . . . . . . . . . 1 . . . . . . Branch Access Points 4 | . . . . . . . 1 . . 1 . . . . 1 . . 1 . . . . . Machine Index 2 | . . . . . . . . . . . . . . . 1 . 1 . . . . . . Terminal Index 6 | . 1 . . . . . . 1 . 1 . . . . 1 . 1 1 . . . . . Fabricator Index 1 | . . . . . . . . . . . . . . . . . 1 . . . . . . Alert Level 10 | . . . . . . . 1 . . 1 1 . . 2 2 . 2 1 . . . . . Unreport Threat 24 | . . . . . . . 3 . . 2 1 . . 3 6 . 4 5 . . . . . Locate Traps 21 | . 1 . 1 . . . 3 . . 3 2 . . 1 7 . 3 . . . . . . Maintenance Status 2 | . . . . . . . . . . . . . . . 1 . 1 . . . . . . Recall Extermination 2 | . . . . . . . . . . . . . . . 1 . 1 . . . . . . Recall Assault 2 | . . . . . . . . . . . . . . . . . 1 1 . . . . . Hauler Manifests 1 | . . . . . . . . . . . . . . . 1 . . . . . . . . Registered Prototypes 1 | . . . . . . . . . . . . . . . 1 . . . . . . . . Zone Layout 6 | . . . 1 . . . 1 . . 1 . . . . 2 . 1 . . . . . . EX-Prototype ID Bank 1 | . . . . . 1 . . . . . . . . . . . . . . . . . . Fabricator Hacks 16 | . . . . . . . . . 1 2 . . . . 8 . 2 3 . . . . . Load Schematic 8 | . . . . . . . . . 1 1 . . . . 4 . 1 1 . . . . . Build 8 | . . . . . . . . . . 1 . . . . 4 . 1 2 . . . . . Repair Station Hacks 84 | . . . 2 . . . 13 5 . 6 . . . . 29 . 11 18 . . . . . Scan Component 45 | . . . 1 . . . 7 3 . 3 . . . . 16 . 6 9 . . . . . Repair 39 | . . . 1 . . . 6 2 . 3 . . . . 13 . 5 9 . . . . . Recycling Unit Hacks 1 | . . . . . . . . . . . . . . . 1 . . . . . . . . Retrieve Matter 1 | . . . . . . . . . . . . . . . 1 . . . . . . . . Scanalyzer 31 | . . . . . . . 21 . . . . . . . . . 10 . . . . . . Insert Component 13 | . . . . . . . 9 . . . . . . . . . 4 . . . . . . Analyze 18 | . . . . . . . 12 . . . . . . . . . 6 . . . . . . Garrison Access Hacks 6 | . . . . . . . 1 . 1 1 . . . . 1 . 2 . . . . . . Seal Access 6 | . . . . . . . 1 . 1 1 . . . . 1 . 2 . . . . . . Unauthorized Hacks 92 | . 4 . 9 . . . 10 1 1 9 3 . . 3 26 . 17 8 . . . . 1 Terminals 79 | . 4 . 9 . . . 9 . . 8 3 . . 2 20 . 16 7 . . . . 1 Track 38 | . 3 . 6 . . . 5 . . 2 2 . . 1 9 . 8 2 . . . . . Assimilate 15 | . . . 1 . . . . . . 3 . . . 1 3 . 3 4 . . . . . Botnet 22 | . 1 . 1 . . . 3 . . 3 1 . . . 6 . 5 1 . . . . 1 Disrupt 1 | . . . . . . . . . . . . . . . 1 . . . . . . . . Operators 3 | . . . 1 . . . 1 . . . . . . . 1 . . . . . . . . Fabricators 7 | . . . . . . . . . . . . . . . 6 . 1 . . . . . . Prioritize 3 | . . . . . . . . . . . . . . . 3 . . . . . . . . Siphon 4 | . . . . . . . . . . . . . . . 3 . 1 . . . . . . Repair Stations . | . . . . . . . . . . . . . . . . . . . . . . . . Recycling Units 4 | . . . . . . . 1 1 1 1 . . . . . . . . . . . . . Mask 4 | . . . . . . . 1 1 1 1 . . . . . . . . . . . . . Scanalyzers . | . . . . . . . . . . . . . . . . . . . . . . . . Garrison Access 2 | . . . . . . . . . . . . . . 1 . . . 1 . . . . . Jam 2 | . . . . . . . . . . . . . . 1 . . . 1 . . . . . Data Cores Recovered 1 | . . . . . . . 1 . . . . . . . . . . . . . . . . Used 1 | . . . . . . . 1 . . . . . . . . . . . . . . . . Hacking Detections 89 | . 5 . 6 . . . 14 4 3 9 3 1 . 5 14 . 15 9 . . . . 1 Full Trace Events 7 | . . . . . . . 4 . 1 . . . . . . . 1 1 . . . . . Feedback Events 2 | . . . . . . . 1 . . . . . . . . . . 1 . . . . . Corruption 1 | . . . . . . . 1 . . . . . . . . . . . . . . . . Hackware Fried 1 | . . . . . . . . . . . . . . . . . . 1 . . . . . Feedback Blocked . | . . . . . . . . . . . . . . . . . . . . . . . . Robot Schematics Acquired . | . . . . . . . . . . . . . . . . . . . . . . . . Robots Built . | . . . . . . . . . . . . . . . . . . . . . . . . Matter . | . . . . . . . . . . . . . . . . . . . . . . . . Time . | . . . . . . . . . . . . . . . . . . . . . . . . Total Robot Build Rating . | . . . . . . . . . . . . . . . . . . . . . . . . Part Schematics Acquired 28 | . . . . . . . 9 . . . . . . . 1 . 17 1 . . . . . Parts Built 13 | . . . . . . . . . . 2 . . . . 8 . 1 2 . . . . . Matter 1607 | . . . . . . . . . . 256 . . . . 768 . 159 424 . . . . . Time 735 | . . . . . . . . . . 128 . . . . 448 . 53 106 . . . . . Total Part Build Rating 98 | . . . . . . . . . . 16 . . . . 64 . 6 12 . . . . . Parts Repaired 39 | . . . 1 . . . 6 2 . 3 . . . . 13 . 5 9 . . . . . Time 2412 | . . . 38 . . . 332 76 . 170 . . . . 836 . 345 615 . . . . . Parts Recycled . | . . . . . . . . . . . . . . . . . . . . . . . . Recycled Matter . | . . . . . . . . . . . . . . . . . . . . . . . . Retrieved Matter 125 | . . . . . . . . . . . . . . . 125 . . . . . . . . Retrieved Components . | . . . . . . . . . . . . . . . . . . . . . . . . Parts Scanalyzed 13 | . . . . . . . 9 . . . . . . . . . 4 . . . . . . Part Schematics Acquired 13 | . . . . . . . 9 . . . . . . . . . 4 . . . . . . Parts Damaged 2 | . . . . . . . 1 . . . . . . . . . 1 . . . . . . Bothacking | -11 -10 -10 -9 -9 -9 -8 -8 -8 -7 -6 -6 -6 -6 -6 -5 -5 -5 -4 -4 -4 -4 -3 -3 ------------ Run | Scr Mat Min Mat Min Exi Min Mat Sto Fac Fac Ext Cet Arc Hub Fac Was Fac Fac Upp Upp Zhi Pro Res Used RIF Installer . | . . . . . . . . . . . . . . . . . . . . . . . . Robots Hacked . | . . . . . . . . . . . . . . . . . . . . . . . . Non-combat . | . . . . . . . . . . . . . . . . . . . . . . . . Combat . | . . . . . . . . . . . . . . . . . . . . . . . . Robot Hacks Applied . | . . . . . . . . . . . . . . . . . . . . . . . . Relay Couplers Released 4 | . . . . . . . . 1 . . . . . 3 . . . . . . . . . Machine Destruction 4 | . . . . . . . . 1 . . . . . 3 . . . . . . . . . Robots Rewired 15 | . . . . . . . . . . . 14 . . . 1 . . . . . . . . Allies Hacked 2 | . . . . . . . . . . . . . . . 1 . . 1 . . . . . Hacks Repelled . | . . . . . . . . . . . . . . . . . . . . . . . . Allies | -11 -10 -10 -9 -9 -9 -8 -8 -8 -7 -6 -6 -6 -6 -6 -5 -5 -5 -4 -4 -4 -4 -3 -3 -------- Run | Scr Mat Min Mat Min Exi Min Mat Sto Fac Fac Ext Cet Arc Hub Fac Was Fac Fac Upp Upp Zhi Pro Res Total Allies 42 | . . 3 . 2 . . . . . 1 22 5 . 1 3 . 2 3 . . . . . Largest Group 17 | . . 3 2 2 2 . . . . 1 16 17 13 10 2 1 1 2 . . . . . Highest-Rated Group 890 | . . 40 24 52 52 . . . . 26 555 890 663 570 52 26 26 20 . . . . . Highest-Rated Ally 156 | . . 16 16 31 31 . . . . 26 156 156 94 94 49 26 26 10 . . . . . Total Orders 61 | . . . . . . . . . . . 14 4 2 5 13 . 13 10 . . . . . STAY 32 | . . . . . . . . . . . 7 2 1 3 7 . 7 5 . . . . . FOLLOW 29 | . . . . . . . . . . . 7 2 1 2 6 . 6 5 . . . . . Ally Attacks 261 | . . 5 31 2 6 . . . . . 57 110 7 31 3 . . . . . . 4 5 Total Damage 6429 | . . 54 351 22 279 . . . . . 1319 2698 227 1028 58 . . . . . . 163 230 Kills 49 | . . 3 6 1 1 . . . . . 10 18 2 6 . . . . . . . 1 1 Allies Corrupted . | . . . . . . . . . . . . . . . . . . . . . . . . Allies Melted . | . . . . . . . . . . . . . . . . . . . . . . . . Turrets Deployed 3 | . . . . . 1 . . . . . . . . . . . . . . . . 1 1 Intel | -11 -10 -10 -9 -9 -9 -8 -8 -8 -7 -6 -6 -6 -6 -6 -5 -5 -5 -4 -4 -4 -4 -3 -3 ------- Run | Scr Mat Min Mat Min Exi Min Mat Sto Fac Fac Ext Cet Arc Hub Fac Was Fac Fac Upp Upp Zhi Pro Res Robot Analysis Total 16 | . 2 . 2 . . . 3 . . . . . . . 5 . 3 1 . . . . . Derelict Logs Recovered 5 | . . 1 . 2 . . . . . . . . . . . . . . 1 1 . . . Drone Launches . | . . . . . . . . . . . . . . . . . . . . . . . . Drone Recoveries . | . . . . . . . . . . . . . . . . . . . . . . . . Exploration | -11 -10 -10 -9 -9 -9 -8 -8 -8 -7 -6 -6 -6 -6 -6 -5 -5 -5 -4 -4 -4 -4 -3 -3 ------------- Run | Scr Mat Min Mat Min Exi Min Mat Sto Fac Fac Ext Cet Arc Hub Fac Was Fac Fac Upp Upp Zhi Pro Res Turns Passed 38184 | 152 1072 335 2150 1039 3800 1050 3693 1448 832 1601 2397 821 1321 1399 3769 467 3962 4106 467 382 95 825 1001 Spaces Moved 24089 | 88 683 320 1020 503 1862 520 1679 562 432 1484 1844 501 155 950 2619 499 2911 3308 506 475 126 474 568 Core 40 | 4 . . . . 2 . . . . . . . 33 . . . . . . . . 1 . Treads 4188 | . . . 918 503 1037 12 778 562 378 . . . . . . . . . . . . . . Legs 2352 | . . . . . 823 508 901 . . . . . . . . . . . . . . 101 19 Wheels 1290 | 84 683 320 102 . . . . . . . . . . . . . . . . . . . 101 Hover 16219 | . . . . . . . . . 54 1484 1844 501 122 950 2619 499 2911 3308 506 475 126 372 448 Flight . | . . . . . . . . . . . . . . . . . . . . . . . . Fastest Speed 43 | 50 90 100 100 180 120 190 163 165 58 53 63 63 63 63 58 68 68 68 68 68 68 68 43 Average Speed 102 | 96 92 100 180 199 178 191 163 165 154 61 63 64 415 69 69 68 69 76 68 68 68 96 87 Slowest Speed 1700 | 100 100 100 200 200 550 260 245 165 245 63 63 128 1700 128 142 68 138 142 68 68 68 1500 150 Overloaded Moves . | . . . . . . . . . . . . . . . . . . . . . . . . Propulsion Burnouts . | . . . . . . . . . . . . . . . . . . . . . . . . Robots Hopped 1 | . . . . . 1 . . . . . . . . . . . . . . . . . . Cave-ins Triggered . | . . . . . . . . . . . . . . . . . . . . . . . . Exploration Rate (%) 62 | 5 88 70 81 99 91 84 92 89 12 26 80 69 82 48 47 96 49 48 65 63 56 52 18 Regions Visited 23 Branch Regions 13 Pre-discovered Areas 1 | . . . . . 1 . . . . . . . . . . . . . . . . . . Known Exits Taken 16 | . . 1 . . . 1 1 1 1 1 1 1 1 1 . . 1 1 1 1 1 1 . Unknown Exits Taken 5 | 1 1 . 1 1 1 . . . . . . . . . . . . . . . . . . Scrap Searched 16 | . . 1 . 2 . 1 . . . . . . . . . . . . 3 5 . 4 . Spaces Dug 113 | . 6 . 2 . . . 6 3 . 23 4 . . 7 14 . 8 31 2 4 . 2 1 Terrain Destroyed 1455 | . 22 . 48 20 15 6 67 55 81 51 33 4 50 417 141 2 199 181 2 11 . 20 30 Melee 2 | . . . . . . . . 1 . . . . . . . . . . . . . . 1 Projectile 356 | . 10 . 2 . . . 13 7 . 51 16 4 . 17 45 2 83 82 2 11 . 4 7 AOE 1097 | . 12 . 46 20 15 6 54 47 81 . 17 . 50 400 96 . 116 99 . . . 16 22 Terrain Rammed . | . . . . . . . . . . . . . . . . . . . . . . . . Walls Destroyed . | . . . . . . . . . . . . . . . . . . . . . . . . Machines Disabled . | . . . . . . . . . . . . . . . . . . . . . . . . Actions | -11 -10 -10 -9 -9 -9 -8 -8 -8 -7 -6 -6 -6 -6 -6 -5 -5 -5 -4 -4 -4 -4 -3 -3 --------- Run | Scr Mat Min Mat Min Exi Min Mat Sto Fac Fac Ext Cet Arc Hub Fac Was Fac Fac Upp Upp Zhi Pro Res Total 35508 | 127 1046 335 1230 525 2175 548 2407 961 528 2086 2987 903 819 1627 4327 581 4608 4703 628 526 134 805 892 Wait 8606 | 4 283 15 84 4 72 1 492 255 5 493 869 299 647 608 1449 31 1462 1034 114 33 . 243 109 Move 24065 | 87 682 319 1019 502 1859 519 1678 561 431 1483 1843 500 154 949 2619 498 2910 3307 505 474 125 473 568 Hop 1 | . . . . . 1 . . . . . . . . . . . . . . . . . . Pick Up 364 | 11 13 1 30 4 57 . 39 12 7 7 26 10 2 1 28 4 23 35 1 2 4 9 38 Fast Attach 66 | . . . 3 . . . 13 7 . 7 . 8 . 4 2 5 2 7 2 . . . 6 Attach 200 | 6 1 . 4 1 28 . 11 4 11 4 2 1 . 2 21 1 9 44 1 3 3 12 31 Detach 31 | . . . . . 4 . 1 3 . . . 1 . 1 4 . 1 13 . . . 2 1 Swap 363 | 1 20 . 13 3 8 7 30 16 12 9 24 20 5 16 56 9 55 36 . 2 1 13 7 Drop 263 | 1 8 . 21 4 40 . 28 14 19 7 17 17 2 4 11 11 16 20 3 . 1 3 16 Fire 1316 | 17 39 . 55 7 106 21 114 81 43 75 64 47 9 42 133 22 130 207 2 12 . 45 45 Melee 77 | . . . . . . . . 1 . . . . . . . . . . . . . 5 71 Ram . | . . . . . . . . . . . . . . . . . . . . . . . . Kick 1 | . . . . . . . 1 . . . . . . . . . . . . . . . . Crush 6 | . . . 1 . . . . 5 . . . . . . . . . . . . . . . Escape Stasis 42 | . . . . . . . . 2 . 1 39 . . . . . . . . . . . . Rewire 100 | . . . . . . . . . . . 97 . . . 3 . . . . . . . . Trap 7 | . . . . . . . . . . . 6 . . . 1 . . . . . . . . Miscellaneous . | . . . . . . . . . . . . . . . . . . . . . . . . Route ------- -11/Scrapyard -10/Materials (discovered 3 exits: *Mat x2 / [*Min]) -10/Mines (discovered 2 exits: *Mat x2) -9/Materials (discovered 4 exits: *Mat x3 / *Min) -9/Mines (discovered 4 exits: *Mat x2 / *Exi / [*Zio]) -9/Exiles -8/Mines -8/Materials (discovered 4 exits: *Fac x3 / *Sto) -8/Storage -7/Factory -6/Factory (discovered 4 exits: *Low x2 / *Ext x2) -6/Extension (discovered 2 exits: *Fac / *Cet) -6/Cetus (discovered 2 exits: *Fac / *Arc) -6/Archives (discovered 3 exits: *Fac / *Hub x2) -6/Hub_04(d) (discovered 3 exits: *Fac x3) -5/Factory (discovered 4 exits: *Fac x2 / Upp x2) -5/Waste -5/Factory (discovered 6 exits: *Fac x4 / *Upp x2) -4/Factory (discovered 3 exits: *Res / *Upp x2) -4/Upper Caves -4/Upper Caves (discovered 2 exits: *Res / *Zhi) -4/Zhirov -3/Proximity Caves -3/Research (discovered 1 exit: *Tes) History --------- Turn | Location | Event 24 | -11/Scrapyard | Discovered new exit (range 15) 153 | -11/Scrapyard | Entered Materials 321 | -10/Materials | Build established: Mutant 429 | -10/Materials | Discovered new exit (range 13) 556 | -10/Materials | Discovered new exit (range 10) 877 | -10/Materials | Discovered new exit (range 3) 1225 | -10/Materials | Entered Mines 1228 | -10/Mines | Assisted by bots powering up and referring to "LRC-V3" 1335 | -10/Mines | Discovered new exit (range 14) 1336 | -10/Mines | Found a damaged Exp. Sensor Array with a note attached 1340 | -10/Mines | Found Prototype Device 1449 | -10/Mines | Identified exit to Materials 1516 | -10/Mines | Assembled infested the area 1521 | -10/Mines | Assisted by a Guerilla fighting off Assembled 1560 | -10/Mines | Entered Materials 1560 | -9/Materials | Accompanied by 2 allies 1560 | -9/Materials | Evolved 2 slots: Utility x2 1869 | -9/Materials | Build established: Hauler-Mutant 1934 | -9/Materials | Discovered new exit (range 16) 1994 | -9/Materials | Discovered new exit (range 5) 2661 | -9/Materials | Repaired Lgt. Nuclear Core 2734 | -9/Materials | Discovered new exit (range 15) 3204 | -9/Materials | Discovered new exit (range 8) 3413 | -9/Materials | Central database locked down 3710 | -9/Materials | Entered Mines 3876 | -9/Mines | Discovered new exit (range 7) 3927 | -9/Mines | A Derelict revealed a hidden shortcut to a safe place 4049 | -9/Mines | Deemed a non-threat by the Exiles lab entrance 4049 | -9/Mines | Discovered new exit (range 5) 4194 | -9/Mines | Received a Rocket Launcher from a helpful Derelict 4222 | -9/Mines | Learned 8 Materials zone layouts 4240 | -9/Mines | Identified exit to Materials 4469 | -9/Mines | Met a Derelict shopkeep closing up shop 4749 | -9/Mines | Entered Exiles 4749 | -9/Exiles | Accompanied by 2 allies 4779 | -9/Exiles | Led the pair of lost Derelicts to a safe place 4797 | -9/Exiles | Met 8R-AWN 4831 | -9/Exiles | Met EX-HEX 4921 | -9/Exiles | Met EX-DEC 4959 | -9/Exiles | Learned location of Zion (-7) 5071 | -9/Exiles | Discovered new exit (range 12) 5208 | -9/Exiles | Met EX-BIN 5234 | -9/Exiles | Aligned with FarCom system 5236 | -9/Exiles | Given EX-Vault access code 5282 | -9/Exiles | Opened EX-Vault 5328 | -9/Exiles | Warned to stay clear of 0b10 Research branches 5464 | -9/Exiles | Found PSU Rigger 5471 | -9/Exiles | Found Latent Energy Streamer 5480 | -9/Exiles | Found Deploy-a-Sentry 5483 | -9/Exiles | Found Deploy-a-Sentry 5486 | -9/Exiles | Found Deploy-a-Sentry 5972 | -9/Exiles | Build established: Mutant 6126 | -9/Exiles | Attacked by the Exiles 6348 | -9/Exiles | Destroyed 8R-AWN 6370 | -9/Exiles | Lost 3 parts (2u1w) 6593 | -9/Exiles | Lost 5 parts (1p1n2u1w) 6805 | -9/Exiles | Core integrity fell below 50% 6935 | -9/Exiles | DAS Turret deployed 7134 | -9/Exiles | Destroyed EX-HEX 7198 | -9/Exiles | Destroyed EX-DEC 7417 | -9/Exiles | Destroyed EX-BIN 7442 | -9/Exiles | Found Prototype Device 7443 | -9/Exiles | Identified System Purifier 7530 | -9/Exiles | Found Deploy-a-Sentry 7809 | -9/Exiles | Identified Exp. Sensor Array 8059 | -9/Exiles | Build established: Hauler-Mutant 8549 | -9/Exiles | Stole three prototypes: PSU Rigger, Latent Energy Streamer, Deploy-a-Sentry 8549 | -9/Exiles | Entered Mines 8755 | -8/Mines | Core integrity fell below 20% 9547 | -8/Mines | Discovered exit to Materials (range 5) 9599 | -8/Mines | Entered Materials 9599 | -8/Materials | Evolved 2 slots: Power x1, Propulsion x1 9600 | -8/Materials | Identified exit to Factory 9969 | -8/Materials | Garrison activated, responded to threat 10699 | -8/Materials | Repaired Exp. Sensor Array 10732 | -8/Materials | Repaired Lgt. EM Pulse Cannon 10803 | -8/Materials | Repaired Imp. Assault Rifle 11052 | -8/Materials | Repaired Adv. Myomer Leg 11085 | -8/Materials | Repaired Lgt. EM Pulse Cannon 11559 | -8/Materials | Discovered new exit (range 14) 11812 | -8/Materials | Discovered exit to Factory (range 13) 11832 | -8/Materials | Central database locked down 12539 | -8/Materials | Identified exit to Storage 12644 | -8/Materials | Discovered exit to Factory (range 15) 13166 | -8/Materials | Repaired EM Pulse Cannon 13292 | -8/Materials | Entered Storage 13723 | -8/Storage | Repaired Adv. Treads 13762 | -8/Storage | Repaired EM Pulse Cannon 14108 | -8/Storage | Garrison activated, responded to threat 14254 | -8/Storage | Destroyed 8 combat bots 14492 | -8/Storage | First assault squad dispatched 14553 | -8/Storage | Destroyed 8 combat bots 14702 | -8/Storage | Discovered exit to Factory (range 9) 14733 | -8/Storage | Found Prototype Processor 14740 | -8/Storage | Entered Factory 14740 | -7/Factory | Evolved 2 slots: Utility x2 14740 | -7/Factory | Identified Exp. Targeting Computer 14950 | -7/Factory | Destroyed 10 combat bots 15140 | -7/Factory | First assault squad dispatched 15460 | -7/Factory | Discovered new exit (range 16) 15516 | -7/Factory | Lost 4 parts (1p3n) 15539 | -7/Factory | Identified exit to Factory 15572 | -7/Factory | Entered another Factory area 15572 | -6/Factory | Evolved 2 slots: Propulsion x1, Utility x1 15659 | -6/Factory | Repaired Cmb. Antigrav System 15741 | -6/Factory | Repaired Imp. Heavy Machine Gun 16031 | -6/Factory | Fabricated Cmb. Antigrav System (x2) 16114 | -6/Factory | Build established: Hacker-Mutant 16606 | -6/Factory | Identified exit to Lower Caves 16606 | -6/Factory | Identified exit to Extension 16959 | -6/Factory | Repaired Imp. EM Pulse Cannon 17173 | -6/Factory | Entered Extension 17173 | -6/Extension | Accompanied by 1 ally 17233 | -6/Extension | Rescued a captive Derelict 17236 | -6/Extension | Rescued a captive Derelict 17778 | -6/Extension | Rescued a captive Derelict 17779 | -6/Extension | Rescued a captive Derelict 18245 | -6/Extension | Spotted B-75 Beast 18684 | -6/Extension | Rescued A7 18708 | -6/Extension | Rescued a captive Derelict 18708 | -6/Extension | Rescued a captive Derelict 18793 | -6/Extension | Rescued a captive Derelict 19157 | -6/Extension | Build established: Commander-Mutant 19284 | -6/Extension | Discovered new exit (range 10) 19285 | -6/Extension | Discovered new exit (range 6) 19288 | -6/Extension | Identified exit to Cetus 19570 | -6/Extension | Entered Cetus 19570 | -6/Cetus | Accompanied by 16 allies (A7) 19575 | -6/Cetus | Acquired a Cetus Manufacturing Module code from A7 19582 | -6/Cetus | Spotted Cetus Guard 19582 | -6/Cetus | Spotted Cetus Guard 19584 | -6/Cetus | Spotted Cetus Guard 19590 | -6/Cetus | Allies destroyed Cetus Guard 19590 | -6/Cetus | Spotted Cetus Guard 19592 | -6/Cetus | Allies destroyed Cetus Guard 19596 | -6/Cetus | Allies destroyed Cetus Guard 19603 | -6/Cetus | Allies destroyed Cetus Guard 19647 | -6/Cetus | Discovered new exit (range 15) 19911 | -6/Cetus | Started Cetus Manufacturing Module 19936 | -6/Cetus | Manufactured an Enhanced Grunt 19961 | -6/Cetus | Manufactured an Enhanced Grunt 19986 | -6/Cetus | Manufactured an Enhanced Grunt 20011 | -6/Cetus | Manufactured an Enhanced Grunt 20036 | -6/Cetus | Manufactured an Enhanced Grunt 20048 | -6/Cetus | Discovered new exit (range 16) 20271 | -6/Cetus | Cetus Manufacturing Module disabled 20283 | -6/Cetus | Destroyed A7 20285 | -6/Cetus | Extracted ID and sensor layout for unrecognized location from A7's data core 20288 | -6/Cetus | Found Prototype Protection 20288 | -6/Cetus | Identified Med. Regenerative Plating 20343 | -6/Cetus | Identified exit to Archives 20391 | -6/Cetus | Entered Archives 20391 | -6/Archives | Accompanied by 13 allies 20422 | -6/Archives | System corruption reached 10% 20964 | -6/Archives | Discovered new exit (range 15) 20982 | -6/Archives | Discovered new exit (range 16) 21685 | -6/Archives | Discovered new exit (range 15) 21694 | -6/Archives | Identified exit to Hub_04(d) 21712 | -6/Archives | Entered Hub_04(d) 21712 | -6/Hub_04(d) | Accompanied by 9 allies 21779 | -6/Hub_04(d) | Discovered new exit (range 16) 21844 | -6/Hub_04(d) | Identified exit to Factory 21844 | -6/Hub_04(d) | Discovered exit to Factory (range 13) 22240 | -6/Hub_04(d) | Garrison activated, responded to threat 22333 | -6/Hub_04(d) | Discovered exit to Factory (range 11) 23089 | -6/Hub_04(d) | Network Hub disabled 23108 | -6/Hub_04(d) | Network Hub disabled 23111 | -6/Hub_04(d) | Entered Factory 23111 | -5/Factory | Evolved 2 slots: Utility x2 23231 | -5/Factory | Identified exit to Upper Caves 23465 | -5/Factory | Build established: Hacker-Mutant 23498 | -5/Factory | P-70 Sage assimilated allied Sentinel 6a 23701 | -5/Factory | Repaired Broken Imp. KE Penetrator 23743 | -5/Factory | Repaired F-cell Engine 23799 | -5/Factory | Repaired Com. Particle Reactor 23835 | -5/Factory | Repaired Cmb. Antigrav System 23871 | -5/Factory | Repaired Cmb. Antigrav System 24019 | -5/Factory | Repaired Broken Imp. KE Penetrator 24096 | -5/Factory | Central database locked down 24949 | -5/Factory | Repaired F-cell Engine 25020 | -5/Factory | Repaired Cmb. Antigrav System? 25143 | -5/Factory | Repaired Imp. KE Penetrator? 25232 | -5/Factory | Repaired Cmb. Antigrav System? 25321 | -5/Factory | Repaired Cmb. Antigrav System? 25377 | -5/Factory | Discovered new exit (range 15) 25385 | -5/Factory | Identified exit to Factory 25511 | -5/Factory | First assault squad dispatched 25810 | -5/Factory | Discovered exit to Factory (range 13) 26168 | -5/Factory | Fabricated Adv. Force Field (x2) 26186 | -5/Factory | Fabricated Adv. Weapon Cycler (x2) 26204 | -5/Factory | Fabricated Cmb. Antigrav System (x2) 26234 | -5/Factory | Fabricated Cmb. Antigrav System? 26356 | -5/Factory | Repaired F-cell Engine? 26395 | -5/Factory | Local fabrication network quarantined 26481 | -5/Factory | Repaired Com. Particle Reactor? 26880 | -5/Factory | Sucked down chute 26880 | -5/Factory | Entered Waste 26880 | -5/Waste | The area was eerily silent 26900 | -5/Waste | 1 allies followed down the chute 26906 | -5/Waste | Found Damper Plating 26916 | -5/Waste | Found Prototype Launcher 26916 | -5/Waste | Identified Ragnarok Missile Launcher 26962 | -5/Waste | Found Damper Plating 26980 | -5/Waste | A Compactor rumbled back to life 26980 | -5/Waste | Spotted C-40 Crusher 27111 | -5/Waste | Destroyed C-40 Crusher 27134 | -5/Waste | Discovered new exit (range 12) 27145 | -5/Waste | Found Prototype Protection 27145 | -5/Waste | Identified Centrium Heavy Armor Plating 27152 | -5/Waste | Identified exit to Factory 27347 | -5/Waste | Entered Factory 27674 | -5/Factory | Discovered exit to Upper Caves (range 15) 28085 | -5/Factory | Repaired Adv. Force Field 28140 | -5/Factory | Repaired Imp. KE Penetrator? 29822 | -5/Factory | Discovered exit to Upper Caves (range 10) 30229 | -5/Factory | Repaired Broken Adv. Force Field? 30342 | -5/Factory | Repaired Imp. KE Penetrator? 30459 | -5/Factory | Repaired Cmb. Antigrav System? 30947 | -5/Factory | First assault squad dispatched 31048 | -5/Factory | Local fabrication network quarantined 31095 | -5/Factory | Fabricated Adv. Hacking Suite? 31309 | -5/Factory | Entered another Factory area 31309 | -4/Factory | Evolved 2 slots: Utility x2 31559 | -4/Factory | First assault squad dispatched 31566 | -4/Factory | Repaired Cmb. Antigrav System 31581 | -4/Factory | Build established: Machinist-Mutant 31634 | -4/Factory | Found Quantum Capacitor 31761 | -4/Factory | Garrison activated, responded to threat 32246 | -4/Factory | System corruption reached 10% 32319 | -4/Factory | Lost 5 parts (1p2u2w) 32429 | -4/Factory | Repaired Adv. Cooling System? 32532 | -4/Factory | Repaired Cld. Fission Core 32590 | -4/Factory | Repaired Adv. Plasma Cannon? 32679 | -4/Factory | Repaired Cmb. Antigrav System 32751 | -4/Factory | Repaired Cmb. Antigrav System 32833 | -4/Factory | Repaired Quantum Reactor 32903 | -4/Factory | Repaired Cmb. Antigrav System 32980 | -4/Factory | Repaired Cmb. Antigrav System 33511 | -4/Factory | Build established: Machinist-Scout 33555 | -4/Factory | Discovered new exit (range 9) 33564 | -4/Factory | Identified exit to Research 33589 | -4/Factory | Found Prototype Device 33589 | -4/Factory | Identified EM Disruption Field 34258 | -4/Factory | Discovered new exit (range 13) 34280 | -4/Factory | Identified exit to Upper Caves 34352 | -4/Factory | Build established: Machinist-Mutant 34858 | -4/Factory | Adv. Hacking Suite fried by hacking feedback 35070 | -4/Factory | Fabricated Adv. Hacking Suite? 35162 | -4/Factory | Fabricated Adv. Hacking Suite? 35184 | -4/Factory | Local fabrication network quarantined 35415 | -4/Factory | Entered Upper Caves 35419 | -4/Upper Caves | Encountered a Warlord checkpoint 35426 | -4/Upper Caves | Learned 4 Research zone layouts 35724 | -4/Upper Caves | Spotted B-86 Titan 35877 | -4/Upper Caves | Discovered new exit (range 8) 35882 | -4/Upper Caves | Identified exit to Upper Caves 35882 | -4/Upper Caves | Entered another Upper Caves area 35882 | -4/Upper Caves | Spotted 5Q-X8J(f) 35883 | -4/Upper Caves | Encountered a Master Thief 35883 | -4/Upper Caves | Deploy-a-Sentry stolen by Master Thief 35897 | -4/Upper Caves | Learned Research stockpile data 35943 | -4/Upper Caves | Discovered exit to Research (range 4) 36017 | -4/Upper Caves | Spotted B-86 Titan 36050 | -4/Upper Caves | Lost 4 parts (2p1u1w) 36260 | -4/Upper Caves | Discovered new exit (range 7) 36263 | -4/Upper Caves | Identified exit to Zhirov 36264 | -4/Upper Caves | Entered Zhirov 36264 | -4/Zhirov | Discovered new exit (range 3) 36277 | -4/Zhirov | Met Zhirov 36299 | -4/Zhirov | Found Alien Artifact 36300 | -4/Zhirov | Identified Integrated Dissipator 36300 | -4/Zhirov | Installed Integrated Dissipator, increased core heat dissipation (+20) 36309 | -4/Zhirov | Found Alien Artifact 36356 | -4/Zhirov | Identified exit to Proximity Caves 36359 | -4/Zhirov | Entered Proximity Caves 36361 | -3/Proximity Caves | Attracted the attention of an 0b10 checkpoint 36405 | -3/Proximity Caves | Attracted the attention of an 0b10 outpost 36879 | -3/Proximity Caves | Lost 3 parts (1n1u1w) 36900 | -3/Proximity Caves | Core integrity fell below 50% 36971 | -3/Proximity Caves | Core integrity fell below 20% 36978 | -3/Proximity Caves | DAS Turret deployed 37001 | -3/Proximity Caves | Lost 3 parts (2n1u) 37175 | -3/Proximity Caves | Discovered exit to Research (range 7) 37184 | -3/Proximity Caves | Entered Research 37184 | -3/Research | Evolved 2 slots: Propulsion x2 37193 | -3/Research | Discovered new exit (range 9) 37205 | -3/Research | Identified exit to Testing 37315 | -3/Research | Build established: Scavenger-Mutant 37567 | -3/Research | Garrison activated, responded to threat 37577 | -3/Research | Found Exp. Signal Interpreter 37615 | -3/Research | DAS Turret deployed 37658 | -3/Research | Lost 4 parts (2p2w) 37752 | -3/Research | Lost 4 parts (1p3n) 37778 | -3/Research | Build established: Hacker-Mutant 37912 | -3/Research | System corruption reached 10% 38026 | -3/Research | Found Gamma Bomb Array 38028 | -3/Research | Found Gamma Bomb Array 38157 | -3/Research | Lost 4 parts (3n1w) 38185 | -3/Research | Self-destructed Last Messages --------------- 38139_ Acquired 20 matter. 38147_ System corrupted: Matter fused (-7). 38147_ Acquired 7 matter. 38151_ Acquired Imp. Antigrav System. 38153_ Acquired 10 matter. 38161_ Sneak attack on K-01 Serf. 38161_ Destroyed Wheel. 38161_ Destroyed Lgt. Ion Engine. 38161_ Destroyed Wheel. 38166_ K-01 Serf destroyed. 38169_ A-15 Conveyor destroyed. 38174_ Acquired Mic. Fission Core. 38176_ R-10 Processor collects Sml. Battery. 38184_ Connecting with Terminal... >>Prototypes Downloading prototype IDs... Exp. Phase Shifter Exp. Biometal Medium Treads Tactical Quantum Warhead 38185_ System corrupted: Heat flow error (+128). Map ----- +----------------------------------------------------+ | ?????????????????????????? ?????????????????# #?? | | ?????????????????????????????????????????????# #?? | | ?????????????????????????????????????????????#%#?? | | ?????????????????????????????????????????????# ##? | | ?????????????????????????????????????????????#!##? | | ??????????????????????????????####???######### ##? | | ?????????????????????????????? ???# ## ##? | | ?????????????????????????????? ??# ## #?? | | ?????????????????????????????? """ ??# ## #?? | | ???????????????????????? """# """ # ## #?? | | ???????????????????????? "" # """ # ## #?? | | ???????????????????????? # """ # [ ##%### | | ???????????????+???????? # """ ###+#####%### | | ???????????????# ?????? # + ]=%!!!%%!!] | | ???????????????# ????? # # ######### | | ???????????????# #############+#### %# ? | | ???????????????# # | | ???????????????# # """" | | ???????????????# # """" | | ???????????????# + """" | | ???????????????# ######+########## # """" | | ????????????????????# #?# # " ! | | ????????????????????# #?# # | | ????????????????????# """ #?# # | | ????????????????????# "T" #?# ######### | | ????????????????????# @ #?# # ? | | ????????????????????# #?# # ? | | ????????????????????################# # """ ? | | ???????????????????????? # # """ ? | | ???????????????????????? # # """ ? | | ???????????????????????? # # ? | | ???????????????????????? + # ? | | ???????????????????????? """ """ # # ? | | ???????????????????????? """ """ # # ? | | ???????????????????????? """ """ # # | | ???????????????????????? """ """ # # | | ???????????????????????? """ """ # #####+### | | ???????????????????????? """ """ # #?# #? | | ???????????????????????? # #?# #? | | ???????????????????????? # ### #? | | ????????????????????????############# #? | | ????????????????????????????????????# #? | | ???????????????????????????########## #? | | ???????????????????????????# # """ #? | | ???????????????????????????# # """ #? | | ???????????????????????????# # """ #? | | ????????????????????????#### # ## | | ???????????????????????? + + # | | ???????????????????????? # # # | | ???????????????????????? # # ! # | +----------------------------------------------------+ Best States ------------- Heat Dissipation 74 Coolant Potential 80 Energy Generation 41 Energy Capacity 2050 Matter Stores 300 Matter Capacity 300 Sight Range 16 Robot Scan Range 30 Terrain Scan Range 20 Terrain Scan Density 10 ECM Strength 3 EM Shielding 4 Armor Coverage 1200 Resistance: KI 20 Resistance: EM 90 Weapon Cycling 25 Evasion (%) 56 Targeting Accuracy 12 Recoil Reduction 3 Offensive Hacking 40 Defensive Hacking 24 Item Schematics ----------------- System Purifier | -8/Materials | Scanalyzed Cmb. Antigrav System | -8/Materials | Scanalyzed Hacking Suite | -8/Materials | Scanalyzed Exp. Sensor Array | -8/Materials | Scanalyzed Adv. Weapon Cycler | -8/Materials | Scanalyzed Lrn. Tractor Beam | -8/Materials | Scanalyzed Adv. Targeting Computer | -8/Materials | Scanalyzed Adv. Recalibrator | -8/Materials | Scanalyzed Exp. Heat Sink | -8/Materials | Scanalyzed Adv. Force Field | -5/Factory | Hacked Imp. KE Penetrator | -5/Factory | Scanalyzed Exp. Signal Interpreter | -5/Factory | Hacked Exp. Weapon Shielding | -5/Factory | Hacked Cld. Fission Core | -5/Factory | Scanalyzed Adv. Energy Well | -5/Factory | Scanalyzed Mic. Fission Core | -5/Factory | Hacked Exp. Power Shielding | -5/Factory | Hacked Enh. Fission Core | -5/Factory | Scanalyzed Mni. Smartbomb Launcher | -5/Factory | Hacked Exp. Utility Shielding | -5/Factory | Hacked Exp. Terrain Scan Processor | -5/Factory | Hacked Exp. Terrain Scanner | -5/Factory | Hacked Exp. Propulsion Shielding | -5/Factory | Hacked Com. HERF Cannon | -5/Factory | Hacked Quantum Capacitor | -5/Factory | Hacked Exp. Targeting Computer | -5/Factory | Hacked Adv. Hacking Suite | -5/Factory | Hacked Adv. Reaction Control System | -4/Factory | Hacked Robot Schematics ------------------ None Fabricated ------------ Cmb. Antigrav System | x2 | -6/Factory Adv. Force Field | x2 | -5/Factory Adv. Weapon Cycler | x2 | -5/Factory Cmb. Antigrav System | x2 | -5/Factory Cmb. Antigrav System | x2 | -5/Factory Adv. Hacking Suite | x1 | -5/Factory Adv. Hacking Suite | x1 | -4/Factory Adv. Hacking Suite | x1 | -4/Factory Alien Tech Used ----------------- Integrated Dissipator Achievements -------------- None Challenges ------------ None Game ------ Seed DecoderBackupKinecellerator Manual? 0 Play Time 07:51:03 Cumulative 419.4 hours Start 2021.05.05 @ 16:57:16 End 2021.06.20 @ 15:35:35 Sessions 29 Manual Loads 0 Difficulty Rogue Special Mode None Game No. 132 Rogue 128 Adventurer 4 Explorer 0 Win Type - Total 10 Types 5/1/3/0/0/0/0/1/0 Lore% 80 Gallery% 83 Achievement% 68 Wizard Run 0 Options --------- ASCII 1 Keyboard 0 Movement Arrows Keybinds 0 Fullscreen 1 Font 18/TerminusBold Map View 76x50 Tactical HUD 1 Map Filters NONE Filters NONE Steam 1 RUN: 85fa4769-7b1f-421b-9f3b-28bfff8e0577